bitfinex-derivatives/quotes_ETHF0:USTF0_20240817
["timestamp","ask_amount","ask_price","bid_price","bid_amount"]
[1723931355397,5.53798555,2605.9,2605.8,0.00576092]
[1723931355798,8.03589637,2605.9,2605.8,0.00576092]
[1723931356697,5.53798555,2605.9,2605.8,0.00576092]
[1723931357298,8.74578555,2605.9,2605.8,0.00576092]
[1723931358101,5.53798555,2605.9,2605.8,0.00576092]
[1723931358810,8.74578555,2605.9,2605.8,0.00576092]
[1723931358997,6.03794555,2605.9,2605.8,0.00576092]
[1723931359198,7.09718203,2605.9,2605.8,1.44465092]
[1723931359608,7.09718203,2605.9,2605.8,2.69715092]
[1723931359609,8.53602203,2605.9,2605.8,2.69715092]
[1723931360203,7.09718203,2605.9,2605.8,2.69715092]
[1723931361405,4.59910555,2605.9,2605.8,2.69715092]
[1723931361813,4.59910555,2605.9,2605.8,3.70227064]
[1723931362515,3.49310555,2605.9,2605.8,3.70227064]
[1723931362704,3.2078,2605.9,2605.8,6.12645138]
[1723931363007,3.49310973,2605.9,2605.8,6.12645138]
[1723931363315,3.49311556,2605.9,2605.8,6.12645138]
[1723931365605,3.49311556,2605.9,2605.8,4.20761476]
[1723931365814,3.49311556,2605.9,2605.8,6.12641383]
[1723931366311,3.49311556,2605.9,2605.8,2.69715092]
[1723931366512,0.28531556,2605.9,2605.8,4.6159686]
[1723931366716,0.28531556,2605.9,2605.8,6.12643244]
[1723931366919,1.3393,2606.0,2605.9,1.43884]
[1723931367116,1.62461928,2606.0,2605.9,5.13120955]
[1723931368009,2.73061928,2606.0,2605.9,5.13120955]
[1723931368415,0.28531928,2606.0,2605.9,8.96880955]
[1723931369022,0.28531928,2606.0,2605.9,10.88755672]
[1723931369209,0.28531928,2606.0,2605.9,8.96880955]
[1723931371025,0.28531928,2606.0,2605.9,7.96254]
[1723931374615,2.55049092,2606.1,2606.0,1.43878]
[1723931374920,2.83580725,2606.1,2606.0,1.43878]
[1723931375121,2.55049092,2606.1,2606.0,1.43878]
[1723931375313,2.83580692,2606.1,2606.0,1.43878]
[1723931375921,2.83580969,2606.1,2606.0,1.43878]
[1723931377624,2.83580973,2606.1,2606.0,1.43878]
[1723931378817,2.55049092,2606.1,2606.0,1.43878]
[1723931379017,2.83580868,2606.1,2606.0,1.43878]
[1723931381514,1.72980868,2606.1,2606.0,1.43878]
[1723931381719,2.83580868,2606.1,2606.0,1.43878]
[1723931382929,2.83579181,2606.1,2606.0,1.43878]
[1723931385530,1.72979181,2606.1,2606.0,1.43878]
[1723931385723,2.83579181,2606.1,2606.0,1.43878]
[1723931386927,1.39706181,2606.1,2606.0,1.43878]
[1723931388438,1.39704808,2606.1,2606.0,1.43878]
[1723931388635,2.83577808,2606.1,2606.0,1.43878]
[1723931390633,1.39704808,2606.1,2606.0,1.43878]
[1723931390841,2.83577808,2606.1,2606.0,1.43878]
[1723931391136,4.06827808,2606.1,2606.0,1.43878]
[1723931392041,4.06827785,2606.1,2606.0,1.43878]
[1723931393340,2.62954785,2606.1,2606.0,1.43878]
[1723931393535,4.06827785,2606.1,2606.0,1.43878]
[1723931393840,7.90587785,2606.1,2606.0,1.43878]
[1723931394036,7.90589785,2606.1,2606.0,1.43878]
[1723931395633,7.90590785,2606.1,2606.0,1.43878]
[1723931399739,7.62061092,2606.1,2606.0,1.43878]
[1723931399933,7.90590239,2606.1,2606.0,1.43878]
[1723931400142,7.62061092,2606.1,2606.0,1.43878]
[1723931400332,7.90590476,2606.1,2606.0,1.43878]
[1723931402644,1.43878,2606.0,2605.9,2.80409]
[1723931402939,1.72407384,2606.0,2605.9,2.80414]
[1723931403147,2.83007384,2606.0,2605.9,2.80414]
[1723931403348,2.83007384,2606.0,2605.9,1.3653]
[1723931404240,2.83007384,2606.0,2605.9,2.37156955]
[1723931407349,2.83007384,2606.0,2605.9,1.00626955]
[1723931407548,2.83007384,2606.0,2605.9,2.44510955]
[1723931409546,1.39129384,2606.0,2605.9,1.00626955]
[1723931410945,1.39129178,2606.0,2605.9,1.00626955]
[1723931411546,1.39129184,2606.0,2605.9,1.00626955]
[1723931415153,1.39129237,2606.0,2605.9,1.00626955]
[1723931416549,2.83007237,2606.0,2605.9,1.00626955]
[1723931418341,2.83007237,2606.0,2605.9,2.44510955]
[1723931418649,2.83007237,2606.0,2605.9,1.00626955]
[1723931419457,2.54478,2606.0,2605.9,1.00626955]
[1723931419652,2.83002554,2606.0,2605.9,1.00626955]
[1723931422843,2.83002554,2606.0,2605.9,2.44510955]
[1723931423552,2.54478,2606.0,2605.9,2.44510955]
[1723931423853,2.83002536,2606.0,2605.9,2.44510955]
[1723931424851,1.72402536,2606.0,2605.9,2.44510955]
[1723931425060,2.83002536,2606.0,2605.9,2.44510955]
[1723931425748,2.79002536,2606.0,2605.9,2.44510955]
[1723931426654,0.28524536,2606.0,2605.9,2.44510955]
[1723931426857,0.28524536,2606.0,2605.9,10.14440469]
[1723931427066,0.00576092,2606.1,2606.0,2.87756]
[1723931427360,0.29099248,2606.1,2606.0,10.14369609]
[1723931427660,0.29099248,2606.1,2606.0,11.40139609]
[1723931427854,0.0903319,2606.1,2606.0,11.40139609]
[1723931428054,0.29031706,2606.1,2606.0,11.40139609]
[1723931428366,0.29031706,2606.1,2606.0,11.40117672]
[1723931428662,0.29031706,2606.1,2606.0,9.89152085]
[1723931429363,0.29031706,2606.1,2606.0,11.40103685]
[1723931431752,0.29031706,2606.1,2606.0,9.89152085]
[1723931431953,0.29031706,2606.1,2606.0,11.40077652]
[1723931433965,0.29031706,2606.1,2606.0,11.40061538]
[1723931435267,0.29031706,2606.1,2606.0,14.60841538]
[1723931435971,0.00576092,2606.1,2606.0,14.60841538]
[1723931436264,0.09032741,2606.1,2606.0,14.60841538]
[1723931436465,0.09032475,2606.1,2606.0,14.60841538]
[1723931436656,0.2902966,2606.1,2606.0,14.60841538]
[1723931437565,0.29028821,2606.1,2606.0,19.60841538]
[1723931437763,0.09032144,2606.1,2606.0,20.10734383]
[1723931438061,0.00531652,2606.1,2606.0,21.93605692]
[1723931438265,1.106,2606.4,2606.0,20.49727692]
[1723931438566,1.43853,2606.5,2606.4,1.43856]
[1723931438761,2.7445003,2606.5,2606.4,1.43856]
[1723931438970,2.7445003,2606.5,2606.4,3.98206]
[1723931440053,2.74439557,2606.5,2606.4,3.98206]
[1723931441262,1.63839557,2606.5,2606.4,3.98206]
[1723931441454,2.74439557,2606.5,2606.4,3.98206]
[1723931441657,0.19986557,2606.5,2606.4,3.98206]
[1723931442057,1.30586557,2606.5,2606.4,3.98206]
[1723931442253,1.106,2606.5,2606.4,7.81886]
[1723931442459,1.3058216,2606.5,2606.4,7.81886]
[1723931442856,1.106,2606.5,2606.4,7.81886]
[1723931443869,1.106,2606.5,2606.4,9.25742]
[1723931444065,0.00576092,2606.7,2606.6,1.43845]
[1723931444466,0.20559743,2606.7,2606.6,5.27445]
[1723931445867,0.00576092,2606.7,2606.6,5.27445]
[1723931450072,0.09022266,2606.7,2606.6,5.27445]
[1723931451769,0.00576092,2606.7,2606.6,6.7129]
[1723931452863,0.00576092,2606.7,2606.6,7.8189]
[1723931456575,0.00576092,2606.7,2606.6,11.0267]
[1723931457970,0.00576092,2606.7,2606.6,18.96734193]
[1723931458366,0.00576092,2606.7,2606.6,23.96734193]
[1723931458766,0.00576092,2606.7,2606.6,24.97292753]
[1723931459172,0.00576092,2606.7,2606.6,23.96734193]
[1723931461075,0.00576092,2606.7,2606.6,18.96734193]
[1723931462577,0.00576092,2606.7,2606.6,17.52889193]
[1723931463081,1.34626092,2606.7,2606.6,17.52889193]
[1723931464083,1.34626092,2606.7,2606.6,9.58825]
[1723931464269,1.34626092,2606.7,2606.6,6.38045]
[1723931464673,1.34626092,2606.7,2606.6,5.27445]
[1723931467677,1.34626092,2606.7,2606.6,1.43845]
[1723931467877,1.34626092,2606.7,2606.6,5.27445]
[1723931468386,1.34626092,2606.7,2606.6,1.43845]
[1723931472490,1.43078115,2606.7,2606.6,1.43845]
[1723931474086,1.43078193,2606.7,2606.6,1.43845]
[1723931475288,1.43077868,2606.7,2606.6,1.43845]
[1723931475685,1.43077005,2606.7,2606.6,1.43845]
[1723931476689,1.43077497,2606.7,2606.6,1.43845]
[1723931480286,1.43077497,2606.7,2606.6,2.4440356]
[1723931480987,1.43076956,2606.7,2606.6,2.4440356]
[1723931483399,1.63069231,2606.7,2606.6,4.36224089]
[1723931483993,1.63069231,2606.7,2606.6,3.35665529]
[1723931484900,1.34626092,2606.7,2606.6,3.35665529]
[1723931485105,1.63067622,2606.7,2606.6,3.35665529]
[1723931485295,1.63067622,2606.7,2606.6,4.86503369]
[1723931485591,1.63067622,2606.7,2606.6,3.35665529]
[1723931485592,1.63067582,2606.7,2606.6,3.35665529]
[1723931486096,1.63066712,2606.7,2606.6,4.86502467]
[1723931491602,1.34626092,2606.7,2606.6,4.86502467]
[1723931491894,1.63060899,2606.7,2606.6,4.86502467]
[1723931492710,1.63060899,2606.7,2606.6,4.86501037]
[1723931493307,1.63062418,2606.7,2606.6,4.86501037]
[1723931497420,1.63061405,2606.7,2606.6,4.86500034]
[1723931501420,1.63060234,2606.7,2606.6,4.86500034]
[1723931501820,1.63060234,2606.7,2606.6,3.35662194]
[1723931502122,1.63060234,2606.7,2606.6,3.35670474]
[1723931502619,1.63060234,2606.7,2606.6,4.86654061]
[1723931504524,1.63060234,2606.7,2606.6,4.86650593]
[1723931505124,1.63060234,2606.7,2606.6,5.36787594]
[1723931505316,1.34626092,2606.7,2606.6,4.86659184]
[1723931505510,1.63057622,2606.7,2606.6,4.86659184]
[1723931506121,1.34626092,2606.7,2606.6,4.86659184]
[1723931506426,1.63057721,2606.7,2606.6,5.36787594]
[1723931506627,1.63057721,2606.7,2606.6,5.36780548]
[1723931509115,1.63057721,2606.7,2606.6,9.20418385]
[1723931509528,1.63057721,2606.7,2606.6,5.36780548]
[1723931510731,1.63057721,2606.7,2606.6,9.20419362]
[1723931511434,1.63057856,2606.7,2606.6,5.36780548]
[1723931512128,1.63057856,2606.7,2606.6,3.35663428]
[1723931513126,1.63057856,2606.7,2606.6,4.86669973]
[1723931513719,1.63057856,2606.7,2606.6,3.35663428]
[1723931515924,1.63057856,2606.7,2606.6,3.35665789]
[1723931516324,5.46657856,2606.7,2606.6,3.35665789]
[1723931516527,7.4628292,2606.7,2606.6,4.86672358]
[1723931516931,5.46657856,2606.7,2606.6,4.86672358]
[1723931517927,5.46657813,2606.7,2606.6,4.86672358]
[1723931520432,5.46657813,2606.7,2606.6,4.86678266]
[1723931521137,5.46642968,2606.7,2606.6,4.86678266]
[1723931521636,5.46641946,2606.7,2606.6,3.35671697]
[1723931523137,1.63041946,2606.7,2606.6,3.35671697]
[1723931523337,5.46641946,2606.7,2606.6,3.35671697]
[1723931523933,5.46641946,2606.7,2606.6,3.35661039]
[1723931524132,5.46641946,2606.7,2606.6,9.20410573]
[1723931524329,5.46641946,2606.7,2606.6,3.35661039]
[1723931524733,5.46643657,2606.7,2606.6,9.20405536]
[1723931525335,5.46643657,2606.7,2606.6,5.36778159]
[1723931525537,5.46643657,2606.7,2606.6,3.35661039]
[1723931526339,5.46643657,2606.7,2606.6,9.20408347]
[1723931526735,5.46643657,2606.7,2606.6,5.36778159]
[1723931528544,5.46643657,2606.7,2606.6,5.36775285]
[1723931531553,5.46643657,2606.7,2606.6,4.86632201]
[1723931531844,5.46643657,2606.7,2606.6,4.86631188]
[1723931532839,5.46644995,2606.7,2606.6,4.86631188]
[1723931533236,5.18226092,2606.7,2606.6,4.86637853]
[1723931533450,5.46644973,2606.7,2606.6,4.86637853]
[1723931535446,1.63044973,2606.7,2606.6,4.86637198]
[1723931537952,1.63044973,2606.7,2606.6,4.866382]
[1723931541553,0.28994973,2606.7,2606.6,4.866382]
[1723931542051,0.28994973,2606.7,2606.6,3.35665832]
[1723931542360,0.28994973,2606.7,2606.6,4.8663547]
[1723931544150,0.28994973,2606.7,2606.6,3.35665832]
[1723931544541,0.28994973,2606.7,2606.6,4.86637323]
[1723931545355,0.00576092,2606.7,2606.6,4.86637323]
[1723931545547,0.09016128,2606.7,2606.6,4.86637323]
[1723931545853,0.28986865,2606.7,2606.6,4.86637323]
[1723931546150,0.28986865,2606.7,2606.6,4.86635306]
[1723931546343,0.28986865,2606.7,2606.6,3.35663815]
[1723931546939,0.28986865,2606.7,2606.6,4.86635967]
[1723931547138,0.28986865,2606.7,2606.6,3.35663815]
[1723931547344,0.28986865,2606.7,2606.6,4.86634895]
[1723931548947,0.28986354,2606.7,2606.6,4.86634895]
[1723931549347,0.28986354,2606.7,2606.6,3.35663788]
[1723931550948,0.28986354,2606.7,2606.6,4.86634978]
[1723931551258,0.28986354,2606.7,2606.6,4.86635128]
[1723931551457,0.28986354,2606.7,2606.6,3.35663788]
[1723931551957,0.28986354,2606.7,2606.6,3.35663352]
[1723931552748,0.28986354,2606.7,2606.6,4.866373]
[1723931552954,0.00576092,2606.7,2606.6,4.866373]
[1723931553164,0.09016734,2606.7,2606.6,4.866373]
[1723931553350,0.28988821,2606.7,2606.6,4.866373]
[1723931553546,1.60548821,2606.7,2606.6,4.866373]
[1723931556560,1.60548821,2606.7,2606.6,4.86639706]
[1723931557354,1.60549609,2606.7,2606.6,4.86639706]
[1723931558863,5.44149525,2606.7,2606.6,4.86639706]
[1723931559359,1.60549525,2606.7,2606.6,4.86639706]
[1723931559555,0.28989525,2606.7,2606.6,4.86639706]
[1723931559758,1.57939525,2606.7,2606.6,6.13489706]
[1723931559958,0.28989525,2606.7,2606.6,4.62515758]
[1723931561165,0.28989525,2606.7,2606.6,4.62510275]
[1723931562261,0.00576092,2606.7,2606.6,4.62510275]
[1723931562458,0.09016823,2606.7,2606.6,4.62510275]
[1723931562662,0.28989165,2606.7,2606.6,4.62510275]
[1723931563369,0.28989165,2606.7,2606.6,6.13487391]
[1723931564663,0.28989165,2606.7,2606.6,7.24087391]
[1723931564863,0.28989165,2606.7,2606.6,4.86637391]
[1723931565756,0.00576092,2606.7,2606.6,4.86651276]
[1723931565952,0.28989481,2606.7,2606.6,4.86651276]
[1723931569165,0.28989481,2606.7,2606.6,2.92488083]
[1723931569358,0.28989481,2606.7,2606.6,4.36333083]
[1723931569563,0.28989481,2606.7,2606.6,4.86651276]
[1723931570558,0.00576092,2606.7,2606.6,4.86651276]
[1723931570768,0.28994969,2606.7,2606.6,4.86651276]
[1723931571062,0.28994969,2606.7,2606.6,1.9182916]
[1723931571262,0.28994969,2606.7,2606.6,3.3567416]
[1723931572366,0.28994969,2606.7,2606.6,3.42806276]
[1723931572965,0.28994969,2606.7,2606.6,1.9182916]
[1723931574064,0.28994969,2606.7,2606.6,3.42806276]
[1723931574268,0.00576092,2606.7,2606.6,3.42806276]
[1723931574460,0.00576092,2606.7,2606.6,1.9182916]
[1723931574664,0.28995299,2606.7,2606.6,3.42806276]
[1723931574970,0.28995299,2606.7,2606.6,1.9182916]
[1723931575770,0.28995299,2606.7,2606.6,3.42806276]
[1723931575965,0.28995299,2606.7,2606.6,1.9182916]
[1723931576471,0.28995299,2606.7,2606.6,3.42806276]
[1723931576661,0.28995299,2606.7,2606.6,2.9248786]
[1723931576858,0.28995299,2606.7,2606.6,1.9182916]
[1723931577062,0.28995299,2606.7,2606.6,4.86651276]
[1723931578767,0.28995299,2606.7,2606.6,3.42806276]
[1723931579067,0.28995299,2606.7,2606.6,2.92491447]
[1723931579268,0.28995299,2606.7,2606.6,4.86651276]
[1723931579571,0.28995299,2606.7,2606.6,4.86651711]
[1723931579771,0.28995299,2606.7,2606.6,3.42806711]
[1723931580569,2.28620363,2606.7,2606.6,2.9249046]
[1723931580869,3.39220363,2606.7,2606.6,1.00660865]
[1723931581775,3.39221546,2606.7,2606.6,1.00660865]
[1723931582268,3.3922157,2606.7,2606.6,1.00660865]
[1723931584162,1.39596506,2606.7,2606.6,1.00660865]
[1723931584565,3.3922157,2606.7,2606.6,1.00660865]
[1723931584965,7.2282157,2606.7,2606.5,1.00660865]
[1723931585175,7.2282157,2606.7,2606.4,3.53587886]
[1723931585176,7.85555478,2606.6,2606.4,3.53587886]
[1723931585371,3.71896478,2606.5,2606.4,1.2521]
[1723931585675,3.71955853,2606.5,2606.4,1.2521]
[1723931585877,3.43535439,2606.5,2606.4,1.2521]
[1723931586171,3.71957973,2606.5,2606.4,1.2521]
[1723931587878,3.71957973,2606.5,2606.2,1.00647886]
[1723931588175,0.28422534,2606.4,2606.2,3.56547886]
[1723931588370,3.43535439,2606.5,2606.3,1.43861]
[1723931588569,0.28424446,2606.4,2606.3,1.43861]
[1723931589077,5.22704446,2606.4,2606.2,5.00411886]
[1723931589266,5.22704446,2606.4,2606.2,3.76401886]
[1723931589267,1.59814446,2606.3,2606.2,3.76401886]
[1723931589466,1.59814446,2606.3,2606.2,2.32537886]
[1723931589769,5.43494446,2606.3,2606.2,2.32537886]
[1723931590070,5.43494446,2606.3,2606.2,2.75757]
[1723931590071,5.43497313,2606.3,2606.2,2.75757]
[1723931590267,5.43497313,2606.3,2606.2,1.3189]
[1723931592476,5.43497313,2606.3,2606.2,2.75757]
[1723931592682,1.59817313,2606.3,2606.2,2.75757]
[1723931593274,1.59817313,2606.3,2606.2,1.3189]
[1723931593767,1.59817313,2606.3,2606.2,2.75757]
[1723931593968,5.23515691,2606.3,2606.2,2.75757]
[1723931594176,0.08445691,2606.3,2606.2,2.75757]
[1723931594474,0.08445691,2606.3,2606.2,10.02243709]
[1723931594782,1.11176092,2606.7,2606.6,1.43845]
[1723931594977,0.29006826,2606.7,2606.6,1.43845]
[1723931595377,0.29006826,2606.7,2606.6,5.35145]
[1723931595671,0.29006952,2606.7,2606.6,5.35145]
[1723931595872,0.00576092,2606.7,2606.6,6.45745]
[1723931596074,0.08446182,2606.7,2606.6,12.28045127]
[1723931596280,6.08799211,2607.3,2607.2,1.43812]
[1723931596476,3.39029455,2607.3,2607.2,1.43812]
[1723931596678,6.11949455,2607.3,2607.2,1.43812]
[1723931596869,7.22549455,2607.3,2607.2,1.43812]
[1723931597477,5.22865016,2607.3,2607.2,1.43812]
[1723931597674,4.12265016,2607.3,2607.2,1.43812]
[1723931597869,5.22865016,2607.3,2607.2,1.43812]
[1723931598681,0.28745016,2607.3,2607.2,2.54412]
[1723931598882,0.08760493,2607.3,2607.2,2.54412]
[1723931599580,0.08760493,2607.3,2607.2,3.86782]
[1723931600370,0.08760493,2607.3,2607.2,5.30594]
[1723931600572,0.00314772,2607.3,2607.2,5.30594]
[1723931602276,0.00314772,2607.3,2607.2,9.14114]
[1723931609592,0.00314772,2607.3,2607.2,7.70302]
[1723931610482,0.00314772,2607.3,2607.2,12.70302]
[1723931611780,0.00314772,2607.3,2607.2,7.70302]
[1723931611976,0.00314772,2607.3,2607.2,16.8296703]
[1723931612578,0.00018545,2607.3,2607.2,24.69043579]
[1723931621794,0.00018545,2607.3,2607.2,19.69043579]
[1723931625195,0.00018545,2607.3,2607.2,21.12855579]
[1723931626188,0.00018545,2607.3,2607.2,27.56667579]
[1723931626388,1.2265,2607.9,2607.8,1.43779]
[1723931626602,1.2265,2607.9,2607.8,2.54379]
[1723931627602,1.23093622,2607.9,2607.8,2.54776376]
[1723931631995,0.00443622,2607.9,2607.8,3.98555376]
[1723931632194,0.00443622,2607.9,2607.8,7.19335376]
[1723931633600,0.00443622,2607.9,2607.8,5.75556376]
[1723931641219,0.00443622,2607.9,2607.8,6.76031336]
[1723931643307,0.00443622,2607.9,2607.8,8.67737671]
[1723931643707,0.00443622,2607.9,2607.8,6.76031336]
[1723931644011,0.00443622,2607.9,2607.8,8.67738858]
[1723931645014,0.00443622,2607.9,2607.8,8.67743453]
[1723931645218,0.00443622,2607.9,2607.8,6.76031336]
[1723931645610,0.00443622,2607.9,2607.8,7.67270131]
[1723931647814,0.00443622,2607.9,2607.8,9.18011745]
[1723931648118,0.00443622,2607.9,2607.8,7.67270131]
[1723931648317,0.00443622,2607.9,2607.8,9.18011745]
[1723931648717,0.00443622,2607.9,2607.8,9.18002149]
[1723931648917,0.00443622,2607.9,2607.8,7.67261195]
[1723931649214,0.00443622,2607.9,2607.8,9.18002809]
[1723931649818,0.00443622,2607.9,2607.8,5.97222809]
[1723931650010,0.00443622,2607.9,2607.8,9.18002809]
[1723931651517,0.00443622,2607.9,2607.8,8.67613494]
[1723931653013,0.00443622,2607.9,2607.8,6.75908675]
[1723931653215,0.00443622,2607.9,2607.8,8.67621004]
[1723931653423,0.00443622,2607.9,2607.8,8.67633043]
[1723931654013,0.00443622,2607.9,2607.8,7.67268689]
[1723931654215,0.08877504,2607.9,2607.8,9.18010303]
[1723931655115,0.08877515,2607.9,2607.8,8.07410303]
[1723931655616,0.08877515,2607.9,2607.8,9.18010303]
[1723931656926,0.00443622,2607.9,2607.8,7.67268689]
[1723931657222,0.08877232,2607.9,2607.8,7.67268689]
[1723931657821,0.08877232,2607.9,2607.8,9.17830736]
[1723931657822,0.00443622,2607.9,2607.8,9.17830736]
[1723931658025,0.00443622,2607.9,2607.8,7.67253992]
[1723931659317,0.00443622,2607.9,2607.8,11.12150112]
[1723931660027,0.00443622,2607.9,2607.8,9.11032992]
[1723931661720,0.00443622,2607.9,2607.8,27.96190898]
[1723931661929,0.00443622,2607.9,2607.8,29.06790898]
[1723931662425,0.00443622,2607.9,2607.8,29.06776842]
[1723931663414,0.00443622,2607.9,2607.8,27.24185373]
[1723931663927,0.00443622,2607.9,2607.8,29.06776842]
[1723931666623,0.00443622,2607.9,2607.8,31.58004079]
[1723931667024,0.00017429,2607.9,2607.8,30.50578591]
[1723931667628,0.00017429,2607.9,2607.8,22.24224397]
[1723931667824,0.00017429,2607.9,2607.8,17.00423743]
[1723931668033,0.00017429,2607.9,2607.8,20.83824771]
[1723931669123,0.00017429,2607.9,2607.8,23.34824397]
[1723931671528,0.00017429,2607.9,2607.8,23.34816166]
[1723931672636,2.08619,2608.6,2608.2,1.43756]
[1723931672833,0.28412038,2608.5,2608.3,1.106]
[1723931673029,0.08432387,2608.4,2608.3,1.106]
[1723931673229,3.91792387,2608.4,2608.3,1.106]
[1723931673423,8.91792387,2608.4,2608.3,1.106]
[1723931673627,8.92089014,2608.4,2608.3,1.106]
[1723931674033,3.92089014,2608.4,2608.3,1.106]
[1723931674438,4.12068676,2608.4,2608.3,1.106]
[1723931674634,3.83656627,2608.4,2608.3,1.106]
[1723931674938,4.12068688,2608.4,2608.3,1.106]
[1723931675440,3.83656627,2608.4,2608.3,1.106]
[1723931675643,4.12068283,2608.4,2608.3,2.110592]
[1723931677131,3.83656627,2608.4,2608.3,2.110592]
[1723931677331,4.12067964,2608.4,2608.3,2.110592]
[1723931678336,4.12067964,2608.4,2608.3,5.46514322]
[1723931678638,4.12067964,2608.4,2608.3,5.4650812]
[1723931678639,3.92088771,2608.4,2608.3,5.4650812]
[1723931679042,3.92088771,2608.4,2608.3,6.0676812]
[1723931679236,3.92088771,2608.4,2608.3,5.0630892]
[1723931679436,3.92088771,2608.4,2608.3,6.06797737]
[1723931679831,3.92088771,2608.4,2608.3,4.63045737]
[1723931680036,4.12068606,2608.4,2608.3,4.15100817]
[1723931680637,4.12068606,2608.4,2608.3,3.54840817]
[1723931681539,4.120685,2608.4,2608.3,3.54840817]
[1723931684345,4.12068455,2608.4,2608.3,3.54840817]
[1723931684545,4.12068455,2608.4,2608.3,2.44240817]
[1723931684741,4.12068455,2608.4,2608.3,3.54840817]
[1723931685543,4.12068455,2608.4,2608.3,2.11088817]
[1723931685749,4.12068455,2608.4,2608.3,3.54840817]
[1723931685950,4.12068528,2608.4,2608.3,3.54840817]
[1723931688350,0.28708528,2608.4,2608.3,3.54840817]
[1723931688546,4.12068528,2608.4,2608.3,2.11088817]
[1723931688752,4.12068528,2608.4,2608.3,1.00488817]
[1723931689049,4.12068528,2608.4,2608.1,1.106]
[1723931689050,1.43757,2608.2,2608.1,1.106]
[1723931689355,3.72043375,2608.2,2608.1,1.106]
[1723931689653,1.72168901,2608.2,2608.1,1.106]
[1723931690147,3.72040318,2608.2,2608.1,1.106]
[1723931690451,0.28410588,2608.2,2608.1,1.106]
[1723931690751,1.72168131,2608.2,2608.1,1.106]
[1723931691144,0.28411131,2608.2,2608.1,1.106]
[1723931691340,1.72168131,2608.2,2608.1,1.106]
[1723931691548,0.28411131,2608.2,2608.1,1.106]
[1723931691742,2.2827147,2608.2,2608.1,1.106]
[1723931691943,3.7202847,2608.2,2608.1,1.106]
[1723931692154,2.2827147,2608.2,2608.1,2.54363]
[1723931692345,0.28411131,2608.2,2608.1,2.54363]
[1723931692750,2.28258152,2608.2,2608.1,2.54363]
[1723931693149,0.28411131,2608.2,2608.1,2.54363]
[1723931694552,0.28411404,2608.2,2608.1,2.54363]
[1723931694959,1.72168404,2608.2,2608.1,2.54363]
[1723931695554,0.28411404,2608.2,2608.1,2.54363]
[1723931696456,1.72168404,2608.2,2608.1,2.54363]
[1723931697056,0.28411404,2608.2,2608.1,2.54363]
[1723931698451,2.08906,2608.3,2608.1,2.54363]
[1723931698652,1.7216804,2608.2,2608.1,2.54363]
[1723931700045,0.2841104,2608.2,2608.1,2.54363]
[1723931700852,1.7216804,2608.2,2608.1,1.106]
[1723931701051,1.7216804,2608.2,2608.1,2.54363]
[1723931701453,1.72160513,2608.2,2608.1,2.54363]
[1723931701946,1.72160365,2608.2,2608.1,2.54363]
[1723931702558,0.28403365,2608.2,2608.1,2.54363]
[1723931703354,1.72160365,2608.2,2608.1,2.54363]
[1723931705664,1.72160813,2608.2,2608.1,2.54363]
[1723931712061,1.43757,2608.2,2608.1,2.54363]
[1723931712255,1.72162185,2608.2,2608.1,2.54363]
[1723931714159,1.72161404,2608.2,2608.1,2.54363]
[1723931714671,1.43757,2608.2,2608.1,2.54363]
[1723931714965,1.72160738,2608.2,2608.1,2.54363]
[1723931718257,1.7216104,2608.2,2608.1,2.54363]
[1723931721375,1.43757,2608.2,2608.1,2.54363]
[1723931723179,5.27197,2608.2,2608.1,1.43763]
[1723931723382,1.43763,2608.1,2608.0,2.05084]
[1723931723779,5.27203,2608.1,2608.0,2.05084]
[1723931726570,1.43761,2608.2,2608.0,3.15684]
[1723931726770,1.43761,2608.2,2608.0,4.16172817]
[1723931728287,1.72167217,2608.1,2608.0,4.16172817]
[1723931729082,1.72167374,2608.1,2608.0,4.16172817]
[1723931729782,1.72167348,2608.1,2608.0,4.16172817]
[1723931730181,1.72167348,2608.1,2608.0,6.07893846]
[1723931730383,5.55607348,2608.1,2608.0,6.07897846]
[1723931730686,5.55607348,2608.1,2608.0,6.07897896]
[1723931731080,5.55607348,2608.1,2608.0,4.16176817]
[1723931731283,5.55607348,2608.1,2608.0,6.07901308]
[1723931731785,5.55607374,2608.1,2608.0,6.07901308]
[1723931732783,5.55607374,2608.1,2608.0,4.64133308]
[1723931732989,5.55607374,2608.1,2608.0,3.63644491]
[1723931733289,5.55607374,2608.1,2608.0,5.14333292]
[1723931733290,5.55606955,2608.1,2608.0,5.14333292]
[1723931733468,5.55606955,2608.1,2608.0,3.63644491]
[1723931733673,5.55606955,2608.1,2608.0,6.58101292]
[1723931733888,5.55606775,2608.1,2608.0,5.14333072]
[1723931734274,5.27203,2608.1,2608.0,5.14333072]
[1723931734473,5.55606775,2608.1,2608.0,5.14333072]
[1723931734688,7.55636708,2608.1,2608.0,5.14333072]
[1723931734879,5.55606775,2608.1,2608.0,5.14333072]
[1723931735274,5.55606996,2608.1,2608.0,5.14333072]
[1723931735587,5.55606996,2608.1,2608.0,6.58101072]
[1723931736289,4.11843996,2608.1,2608.0,6.58101072]
[1723931736488,5.55606996,2608.1,2608.0,6.58101072]
[1723931737180,4.11843996,2608.1,2608.0,6.58101072]
[1723931737881,4.11844514,2608.1,2608.0,6.58101072]
[1723931738986,5.55607514,2608.1,2608.0,4.03733072]
[1723931739192,5.55607514,2608.1,2608.0,5.47501072]
[1723931739485,5.55607514,2608.1,2608.0,4.03733072]
[1723931739985,5.55607514,2608.1,2608.0,2.53044271]
[1723931740286,5.55607514,2608.1,2608.0,3.53666888]
[1723931740486,6.99370514,2608.1,2608.0,1.61942617]
[1723931740790,13.09970514,2608.1,2608.0,0.6132]
[1723931741092,2.87548,2607.9,2607.8,0.00397376]
[1723931741278,6.99392514,2607.9,2607.8,0.00397376]
[1723931741878,11.99392514,2607.9,2607.8,0.00397376]
[1723931742285,14.49180356,2607.9,2607.8,0.00397376]
[1723931744482,14.49180088,2607.9,2607.8,0.00397376]
[1723931745085,17.69960088,2607.9,2607.8,0.00397376]
[1723931745281,15.20172246,2607.9,2607.8,0.00397376]
[1723931745686,14.91768,2607.9,2607.8,0.00397376]
[1723931745895,15.20172227,2607.9,2607.8,0.00397376]
[1723931746395,15.20172436,2607.9,2607.8,0.00397376]
[1723931747188,17.69960278,2607.9,2607.8,0.00397376]
[1723931748283,15.20172436,2607.9,2607.8,0.00397376]
[1723931749195,17.1975125,2607.9,2607.8,0.00397376]
[1723931750090,12.19750853,2607.9,2607.8,0.00397376]
[1723931752092,8.36310853,2607.9,2607.8,0.00397376]
[1723931752390,12.19750853,2607.9,2607.8,0.00397376]
[1723931754500,11.30772039,2607.9,2607.8,0.00397376]
[1723931756789,8.09992039,2607.9,2607.8,0.00397376]
[1723931757102,11.30772039,2607.9,2607.8,0.00397376]
[1723931758884,11.30771495,2607.9,2607.8,0.00397376]
[1723931761498,11.30771919,2607.9,2607.8,0.00397376]